[Event "Live Chess"]
[Site "Chess.com"]
[Date "2024.06.02"]
[Round "-"]
[White "vincents82"]
[Black "booktrunk"]
[Result "1-0"]
[WhiteElo "2040"]
[BlackElo "1538"]
[TimeControl "300"]
[EndTime "23:06:51 PDT"]
[Termination "vincents82 won by checkmate"]

1. e4 {[%clk 0:04:49.6]} 1... b6 {[%clk 0:04:54.5]} 2. d4 {[%clk 0:04:48.3]}
2... Bb7 {[%clk 0:04:51.4]} 3. Nc3 {[%clk 0:04:46.6]} 3... e6 {[%clk 0:04:46.9]}
4. Nf3 {[%clk 0:04:45.5]} 4... h6 {[%clk 0:04:45.1]} 5. Bd3 {[%clk 0:04:44.3]}
5... Nf6 {[%clk 0:04:43.9]} 6. Qe2 {[%clk 0:04:42.9]} 6... Bb4 {[%clk
0:04:42.6]} 7. Bd2 {[%clk 0:04:41.6]} 7... O-O {[%clk 0:04:39]} 8. e5 {[%clk
0:04:38.5]} 8... Nd5 {[%clk 0:04:34.2]} 9. Nxd5 {[%clk 0:04:37.4]} 9... Bxd2+
{[%clk 0:04:32.6]} 10. Nxd2 {[%clk 0:04:35.5]} 10... Bxd5 {[%clk 0:04:32.5]} 11.
Ne4 {[%clk 0:04:28.7]} 11... Nc6 {[%clk 0:04:26.9]} 12. c4 {[%clk 0:04:23.4]}
12... Bxe4 {[%clk 0:04:24.8]} 13. Qxe4 {[%clk 0:04:17]} 13... Rb8 {[%clk
0:04:20.6]} 14. Qh7# {[%clk 0:04:14.8]} 1-0

[Event "Live Chess"]
[Site "Chess.com"]
[Date "2024.06.02"]
[Round "-"]
[White "WilliamofOrange16th"]
[Black "juniortay"]
[Result "1-0"]
[WhiteElo "1978"]
[BlackElo "2407"]
[TimeControl "300"]
[EndTime "23:07:29 PDT"]
[Termination "WilliamofOrange16th won by resignation"]

1. e4 {[%clk 0:04:56.9]} 1... e5 {[%clk 0:04:59.1]} 2. Nf3 {[%clk 0:04:55.1]}
2... Nf6 {[%clk 0:04:58.7]} 3. Nc3 {[%clk 0:04:52.9]} 3... Nc6 {[%clk
0:04:58.2]} 4. Bb5 {[%clk 0:04:50.3]} 4... Nd4 {[%clk 0:04:57.2]} 5. Ba4 {[%clk
0:04:43.2]} 5... Bc5 {[%clk 0:04:54.6]} 6. O-O {[%clk 0:04:41.6]} 6... O-O
{[%clk 0:04:53.5]} 7. d3 {[%clk 0:04:38.7]} 7... d6 {[%clk 0:04:51.1]} 8. h3
{[%clk 0:04:36.9]} 8... c6 {[%clk 0:04:44.2]} 9. Nxd4 {[%clk 0:04:35.8]} 9...
Bxd4 {[%clk 0:04:43.2]} 10. Ne2 {[%clk 0:04:34.9]} 10... Bb6 {[%clk 0:04:42.1]}
11. c3 {[%clk 0:04:33.6]} 11... Nh5 {[%clk 0:04:36.1]} 12. Kh2 {[%clk 0:04:25]}
12... Qh4 {[%clk 0:04:33.7]} 13. Ng1 {[%clk 0:04:06.7]} 13... f5 {[%clk
0:04:27.9]} 14. g3 {[%clk 0:03:58.6]} 14... Nxg3 {[%clk 0:04:24.8]} 15. fxg3
{[%clk 0:03:57]} 15... Qf6 {[%clk 0:04:24.4]} 16. Bb3+ {[%clk 0:03:50.5]} 16...
Kh8 {[%clk 0:04:21.9]} 17. exf5 {[%clk 0:03:46.4]} 17... d5 {[%clk 0:04:05.1]}
18. Qf3 {[%clk 0:03:42.4]} 18... Bc7 {[%clk 0:04:01.5]} 19. Bd2 {[%clk
0:03:37.3]} 19... Bd7 {[%clk 0:03:56.9]} 20. Rae1 {[%clk 0:03:32.7]} 20... Rae8
{[%clk 0:03:55]} 21. c4 {[%clk 0:03:20.2]} 21... d4 {[%clk 0:03:39.8]} 22. Bd1
{[%clk 0:03:13.8]} 22... Qe7 {[%clk 0:03:34.8]} 23. Qg2 {[%clk 0:03:07.4]} 23...
Bxf5 {[%clk 0:03:30.3]} 24. Be2 {[%clk 0:02:55]} 24... Qd6 {[%clk 0:03:25.3]}
25. b4 {[%clk 0:02:47.8]} 25... Qg6 {[%clk 0:03:23.4]} 26. Nf3 {[%clk
0:02:40.2]} 26... Bxd3 {[%clk 0:03:15]} 27. Nh4 {[%clk 0:02:34.8]} 27... Qe4
{[%clk 0:03:13.7]} 28. Rxf8+ {[%clk 0:02:18.2]} 28... Rxf8 {[%clk 0:03:12.4]}
29. Bf3 {[%clk 0:02:17.7]} 29... Rxf3 {[%clk 0:02:59.4]} 30. Qxf3 {[%clk
0:02:15.6]} 30... Qxf3 {[%clk 0:02:56]} 31. Nxf3 {[%clk 0:02:15.5]} 1-0

[Event "Live Chess"]
[Site "Chess.com"]
[Date "2024.06.02"]
[Round "-"]
[White "elephantgerrald"]
[Black "nigelst"]
[Result "0-1"]
[WhiteElo "806"]
[BlackElo "1735"]
[TimeControl "300"]
[EndTime "23:07:59 PDT"]
[Termination "nigelst won by checkmate"]

1. e4 {[%clk 0:04:58.4]} 1... c6 {[%clk 0:04:58.3]} 2. d4 {[%clk 0:04:56.6]}
2... d5 {[%clk 0:04:57]} 3. e5 {[%clk 0:04:55.6]} 3... c5 {[%clk 0:04:55]} 4.
dxc5 {[%clk 0:04:54.2]} 4... e6 {[%clk 0:04:51.9]} 5. Be3 {[%clk 0:04:52.6]}
5... Nd7 {[%clk 0:04:47.9]} 6. Nf3 {[%clk 0:04:46]} 6... Bxc5 {[%clk 0:04:45.5]}
7. Bxc5 {[%clk 0:04:44.6]} 7... Nxc5 {[%clk 0:04:44.1]} 8. Bb5+ {[%clk
0:04:39.9]} 8... Bd7 {[%clk 0:04:42.3]} 9. Bxd7+ {[%clk 0:04:38.5]} 9... Qxd7
{[%clk 0:04:41.1]} 10. O-O {[%clk 0:04:36]} 10... Ne7 {[%clk 0:04:39.5]} 11. Ng5
{[%clk 0:04:31.4]} 11... O-O {[%clk 0:04:34.6]} 12. b4 {[%clk 0:04:21.2]} 12...
Na6 {[%clk 0:04:25.1]} 13. Qd3 {[%clk 0:04:18.1]} 13... Ng6 {[%clk 0:04:22.7]}
14. h4 {[%clk 0:04:14]} 14... Nxb4 {[%clk 0:04:19.9]} 15. Qf3 {[%clk 0:04:06.9]}
15... Nxc2 {[%clk 0:04:14.3]} 16. Qh5 {[%clk 0:03:59.6]} 16... h6 {[%clk
0:04:11.7]} 17. Nxf7 {[%clk 0:03:53.4]} 17... Qxf7 {[%clk 0:04:08.8]} 18. Qe2
{[%clk 0:03:46.1]} 18... Nxa1 {[%clk 0:04:06.8]} 19. Nc3 {[%clk 0:03:42.9]}
19... Nxe5 {[%clk 0:03:49]} 20. Qxe5 {[%clk 0:03:34.6]} 20... Nc2 {[%clk
0:03:46.5]} 21. Qe2 {[%clk 0:03:29]} 21... Nd4 {[%clk 0:03:43.3]} 22. Qe3 {[%clk
0:03:27.3]} 22... Nf5 {[%clk 0:03:40.5]} 23. Qf3 {[%clk 0:03:21.2]} 23... Nxh4
{[%clk 0:03:35.7]} 24. Qxf7+ {[%clk 0:03:18.7]} 24... Rxf7 {[%clk 0:03:33.9]}
25. g3 {[%clk 0:03:17.1]} 25... Nf5 {[%clk 0:03:31.5]} 26. Re1 {[%clk
0:03:15.1]} 26... Rf6 {[%clk 0:03:27.9]} 27. Nb5 {[%clk 0:02:46.2]} 27... a6
{[%clk 0:03:19.9]} 28. Nc7 {[%clk 0:02:42.8]} 28... Rc8 {[%clk 0:03:16.9]} 29.
Rc1 {[%clk 0:02:27.5]} 29... Nd4 {[%clk 0:03:11.8]} 30. Rd1 {[%clk 0:02:19.8]}
30... Rxc7 {[%clk 0:03:04.5]} 31. Rxd4 {[%clk 0:02:16.3]} 31... Rc2 {[%clk
0:03:02.5]} 32. Kg2 {[%clk 0:02:13.6]} 32... Rfxf2+ {[%clk 0:02:59.9]} 33. Kh3
{[%clk 0:02:12.9]} 33... h5 {[%clk 0:02:56.6]} 34. Kh4 {[%clk 0:02:11.4]} 34...
Rf5 {[%clk 0:02:49.7]} 35. Kh3 {[%clk 0:02:06.6]} 35... g5 {[%clk 0:02:46.1]}
36. g4 {[%clk 0:02:00.5]} 36... Rf3# {[%clk 0:02:42.7]} 0-1

[Event "Live Chess"]
[Site "Chess.com"]
[Date "2024.06.02"]
[Round "-"]
[White "Crowded_House"]
[Black "Duke_of_Bebington"]
[Result "1/2-1/2"]
[WhiteElo "1690"]
[BlackElo "1659"]
[TimeControl "300"]
[EndTime "23:09:00 PDT"]
[Termination "Game drawn by repetition"]

1. d4 {[%clk 0:04:58]} 1... d5 {[%clk 0:04:59]} 2. Bg5 {[%clk 0:04:56.2]} 2...
h6 {[%clk 0:04:54.5]} 3. Bh4 {[%clk 0:04:54]} 3... g5 {[%clk 0:04:53.2]} 4. Bg3
{[%clk 0:04:52.5]} 4... Bg7 {[%clk 0:04:52.9]} 5. c3 {[%clk 0:04:50.6]} 5... Bf5
{[%clk 0:04:50.6]} 6. e3 {[%clk 0:04:49]} 6... Nd7 {[%clk 0:04:49]} 7. Bd3
{[%clk 0:04:48.4]} 7... Bxd3 {[%clk 0:04:47.2]} 8. Qxd3 {[%clk 0:04:47.6]} 8...
Ngf6 {[%clk 0:04:45.9]} 9. Nd2 {[%clk 0:04:44]} 9... c6 {[%clk 0:04:44.3]} 10.
Ngf3 {[%clk 0:04:42.9]} 10... Qb6 {[%clk 0:04:42.5]} 11. b3 {[%clk 0:04:40.2]}
11... c5 {[%clk 0:04:36.9]} 12. Rc1 {[%clk 0:04:23.7]} 12... O-O {[%clk
0:04:31.5]} 13. O-O {[%clk 0:04:21.9]} 13... Rac8 {[%clk 0:04:29.7]} 14. c4
{[%clk 0:04:11.9]} 14... dxc4 {[%clk 0:04:15.7]} 15. Nxc4 {[%clk 0:04:05.6]}
15... Qc6 {[%clk 0:04:12.1]} 16. dxc5 {[%clk 0:03:53.6]} 16... Nxc5 {[%clk
0:04:06.9]} 17. Qe2 {[%clk 0:03:36.7]} 17... Qa6 {[%clk 0:03:43.3]} 18. Be5
{[%clk 0:03:21.5]} 18... Nce4 {[%clk 0:03:39]} 19. a4 {[%clk 0:03:03.7]} 19...
Rfd8 {[%clk 0:03:31.8]} 20. Rfd1 {[%clk 0:02:58.3]} 20... b6 {[%clk 0:03:15.3]}
21. Rxd8+ {[%clk 0:02:51.6]} 21... Rxd8 {[%clk 0:03:13.8]} 22. Rd1 {[%clk
0:02:50.7]} 22... Rxd1+ {[%clk 0:03:11.4]} 23. Qxd1 {[%clk 0:02:49.8]} 23... Qc8
{[%clk 0:03:10.2]} 24. Qd3 {[%clk 0:02:30]} 24... Nc5 {[%clk 0:03:06.5]} 25. Qd1
{[%clk 0:02:22.8]} 25... Nce4 {[%clk 0:03:03]} 26. Qd3 {[%clk 0:02:17.3]} 26...
Nc5 {[%clk 0:03:01.6]} 27. Qd1 {[%clk 0:02:16.4]} 27... Kf8 {[%clk 0:02:52.4]}
28. h3 {[%clk 0:02:08.1]} 28... Nce4 {[%clk 0:02:48]} 29. Qd3 {[%clk 0:02:06.9]}
29... Nc5 {[%clk 0:02:47]} 30. Qd1 {[%clk 0:02:06.1]} 30... Nce4 {[%clk
0:02:32.8]} 31. Qd3 {[%clk 0:02:04.6]} 31... Nc5 {[%clk 0:02:27.2]} 32. Qd1
{[%clk 0:02:03.7]} 1/2-1/2

[Event "Live Chess"]
[Site "Chess.com"]
[Date "2024.06.02"]
[Round "-"]
[White "Greenbecker"]
[Black "MagnersCarlsberg2870"]
[Result "0-1"]
[WhiteElo "1705"]
[BlackElo "1825"]
[TimeControl "300"]
[EndTime "23:10:03 PDT"]
[Termination "MagnersCarlsberg2870 won on time"]

1. e4 {[%clk 0:04:55.3]} 1... d5 {[%clk 0:04:57.3]} 2. exd5 {[%clk 0:04:53.4]}
2... Nf6 {[%clk 0:04:56.4]} 3. Nf3 {[%clk 0:04:51.5]} 3... Qxd5 {[%clk
0:04:54.8]} 4. Nc3 {[%clk 0:04:48.9]} 4... Qh5 {[%clk 0:04:53.4]} 5. Be2 {[%clk
0:04:47.3]} 5... Bg4 {[%clk 0:04:52.1]} 6. h3 {[%clk 0:04:45.6]} 6... e6 {[%clk
0:04:51]} 7. O-O {[%clk 0:04:43]} 7... Bd6 {[%clk 0:04:48.8]} 8. d3 {[%clk
0:04:33]} 8... Bf5 {[%clk 0:04:35.7]} 9. Nd4 {[%clk 0:04:14.9]} 9... Qg6 {[%clk
0:04:34]} 10. Nxf5 {[%clk 0:04:09.6]} 10... Qxf5 {[%clk 0:04:32.4]} 11. Bf3
{[%clk 0:04:01.4]} 11... c6 {[%clk 0:04:31.1]} 12. Ne4 {[%clk 0:03:52.6]} 12...
Nxe4 {[%clk 0:04:25.9]} 13. Bxe4 {[%clk 0:03:45.1]} 13... Qe5 {[%clk 0:04:24.7]}
14. f4 {[%clk 0:03:41.9]} 14... Qd4+ {[%clk 0:04:20.8]} 15. Kh1 {[%clk
0:03:37.5]} 15... Nd7 {[%clk 0:04:14.9]} 16. c3 {[%clk 0:03:33.8]} 16... Qf6
{[%clk 0:04:08.4]} 17. Be3 {[%clk 0:03:23.1]} 17... Nc5 {[%clk 0:03:57.5]} 18.
Bd4 {[%clk 0:03:07.2]} 18... Qh4 {[%clk 0:03:48.6]} 19. Qf3 {[%clk 0:02:24.7]}
19... Nxe4 {[%clk 0:03:44.8]} 20. dxe4 {[%clk 0:02:20.2]} 20... O-O-O {[%clk
0:03:41]} 21. Bxa7 {[%clk 0:02:12.9]} 21... Rhg8 {[%clk 0:03:30.5]} 22. e5
{[%clk 0:02:07.8]} 22... Bc7 {[%clk 0:03:25]} 23. Bc5 {[%clk 0:02:05]} 23... g5
{[%clk 0:03:22.4]} 24. f5 {[%clk 0:02:02.5]} 24... g4 {[%clk 0:03:18.6]} 25. Qf4
{[%clk 0:01:56.4]} 25... f6 {[%clk 0:03:01.7]} 26. Bd6 {[%clk 0:01:47.8]} 26...
fxe5 {[%clk 0:02:56.8]} 27. Bxe5 {[%clk 0:01:43.2]} 27... Bxe5 {[%clk
0:02:55.4]} 28. Qxe5 {[%clk 0:01:39.8]} 28... gxh3 {[%clk 0:02:54.2]} 29. Qxe6+
{[%clk 0:01:33.2]} 29... Kb8 {[%clk 0:02:53]} 30. Qe5+ {[%clk 0:01:31.4]} 30...
Kc8 {[%clk 0:02:45.4]} 31. Qe6+ {[%clk 0:01:28.7]} 31... Kc7 {[%clk 0:02:40.4]}
32. Qf7+ {[%clk 0:01:18]} 32... Kb8 {[%clk 0:02:34.7]} 33. Kg1 {[%clk
0:00:40.4]} 33... hxg2 {[%clk 0:02:27.4]} 34. Rfd1 {[%clk 0:00:30]} 34... Qh1+
{[%clk 0:02:17.9]} 35. Kf2 {[%clk 0:00:28.7]} 35... g1=Q+ {[%clk 0:02:14.9]} 36.
Rxg1 {[%clk 0:00:26.6]} 36... Rd2+ {[%clk 0:02:06.8]} 37. Ke3 {[%clk 0:00:19.4]}
37... Rxg1 {[%clk 0:01:58.1]} 38. Rxg1 {[%clk 0:00:16.1]} 38... Qd5 {[%clk
0:01:51.5]} 39. Rg8+ {[%clk 0:00:13]} 39... Ka7 {[%clk 0:01:49.8]} 40. Qxd5
{[%clk 0:00:11.6]} 40... Rxd5 {[%clk 0:01:46.7]} 41. Rg7 {[%clk 0:00:10.7]}
41... Rxf5 {[%clk 0:01:44.9]} 42. Rxh7 {[%clk 0:00:08.3]} 42... Rb5 {[%clk
0:01:42.8]} 43. b3 {[%clk 0:00:07.1]} 43... Ra5 {[%clk 0:01:41.4]} 44. a4 {[%clk
0:00:06.3]} 44... Rc5 {[%clk 0:01:39.8]} 45. Kd4 {[%clk 0:00:05.3]} 45... Rg5
{[%clk 0:01:37.7]} 46. b4 {[%clk 0:00:03.6]} 46... Rg4+ {[%clk 0:01:36.4]} 47.
Kc5 {[%clk 0:00:02.8]} 47... Rg3 {[%clk 0:01:34.4]} 48. c4 {[%clk 0:00:01.6]}
48... Rg5+ {[%clk 0:01:32.9]} 49. Kd6 {[%clk 0:00:00.5]} 49... Rg6+ {[%clk
0:01:31.7]} 0-1

[Event "Live Chess"]
[Site "Chess.com"]
[Date "2024.06.02"]
[Round "-"]
[White "RichardABates"]
[Black "Winterowl"]
[Result "1-0"]
[WhiteElo "2369"]
[BlackElo "1561"]
[TimeControl "300"]
[EndTime "23:10:52 PDT"]
[Termination "RichardABates won by resignation"]

1. d4 {[%clk 0:04:58.1]} 1... Nf6 {[%clk 0:04:58]} 2. Nf3 {[%clk 0:04:55.9]}
2... d6 {[%clk 0:04:56.6]} 3. g3 {[%clk 0:04:53.6]} 3... g6 {[%clk 0:04:55.5]}
4. Bg2 {[%clk 0:04:52.4]} 4... Bg7 {[%clk 0:04:54.9]} 5. c4 {[%clk 0:04:51.6]}
5... O-O {[%clk 0:04:53.4]} 6. O-O {[%clk 0:04:48.2]} 6... Nbd7 {[%clk
0:04:52.4]} 7. Nc3 {[%clk 0:04:46.6]} 7... Re8 {[%clk 0:04:51.4]} 8. d5 {[%clk
0:04:44.1]} 8... Nc5 {[%clk 0:04:47.1]} 9. Nd4 {[%clk 0:04:40.8]} 9... e5 {[%clk
0:04:44.2]} 10. dxe6 {[%clk 0:04:36]} 10... Nxe6 {[%clk 0:04:42.8]} 11. Nxe6
{[%clk 0:04:31.3]} 11... fxe6 {[%clk 0:04:40.1]} 12. b3 {[%clk 0:04:28]} 12...
Rf8 {[%clk 0:04:38.7]} 13. Bb2 {[%clk 0:04:26.1]} 13... Qe7 {[%clk 0:04:35.3]}
14. e4 {[%clk 0:04:23.8]} 14... c6 {[%clk 0:04:34.5]} 15. f4 {[%clk 0:04:19.2]}
15... Nd7 {[%clk 0:04:07.4]} 16. Qd2 {[%clk 0:04:11.9]} 16... Nc5 {[%clk
0:03:31.2]} 17. Rad1 {[%clk 0:04:08.1]} 17... Rd8 {[%clk 0:03:25.3]} 18. b4
{[%clk 0:03:57]} 18... Na6 {[%clk 0:03:23.2]} 19. a3 {[%clk 0:03:55.8]} 19...
Nc7 {[%clk 0:03:21.8]} 20. Rfe1 {[%clk 0:03:50.3]} 20... Qf7 {[%clk 0:03:17.8]}
21. e5 {[%clk 0:03:42.1]} 21... d5 {[%clk 0:03:15]} 22. c5 {[%clk 0:03:40.8]}
22... Rf8 {[%clk 0:03:09.6]} 23. Ne2 {[%clk 0:03:37.2]} 23... h6 {[%clk
0:03:04.9]} 24. Nd4 {[%clk 0:03:34.1]} 24... Bd7 {[%clk 0:03:00.2]} 25. Rf1
{[%clk 0:03:32.2]} 25... Qe7 {[%clk 0:02:57.5]} 26. Rde1 {[%clk 0:03:28.1]}
26... a6 {[%clk 0:02:55.8]} 27. Qd3 {[%clk 0:03:17.8]} 27... Kh7 {[%clk
0:02:52.7]} 28. a4 {[%clk 0:03:11.8]} 28... Rf7 {[%clk 0:02:48.2]} 29. g4 {[%clk
0:03:06.7]} 1-0

[Event "Live Chess"]
[Site "Chess.com"]
[Date "2024.06.02"]
[Round "-"]
[White "EPotapov05"]
[Black "RockTroll"]
[Result "0-1"]
[WhiteElo "1806"]
[BlackElo "2186"]
[TimeControl "300"]
[EndTime "23:10:56 PDT"]
[Termination "RockTroll won by checkmate"]

1. d4 {[%clk 0:04:54.8]} 1... Nf6 {[%clk 0:04:59.4]} 2. c4 {[%clk 0:04:53.2]}
2... g6 {[%clk 0:04:58.9]} 3. Nc3 {[%clk 0:04:52.4]} 3... Bg7 {[%clk 0:04:58.6]}
4. e4 {[%clk 0:04:51.6]} 4... d6 {[%clk 0:04:58.3]} 5. h3 {[%clk 0:04:50.9]}
5... O-O {[%clk 0:04:57.3]} 6. Nf3 {[%clk 0:04:50.1]} 6... e5 {[%clk 0:04:56.3]}
7. d5 {[%clk 0:04:47.7]} 7... Na6 {[%clk 0:04:54.7]} 8. Be3 {[%clk 0:04:46.1]}
8... Nc5 {[%clk 0:04:53.7]} 9. Nd2 {[%clk 0:04:45.7]} 9... a5 {[%clk 0:04:50.1]}
10. g4 {[%clk 0:04:43.8]} 10... c6 {[%clk 0:04:48.8]} 11. Be2 {[%clk 0:04:41.6]}
11... cxd5 {[%clk 0:04:47.9]} 12. cxd5 {[%clk 0:04:40.5]} 12... a4 {[%clk
0:04:29.8]} 13. g5 {[%clk 0:04:33.9]} 13... Nfd7 {[%clk 0:04:27.6]} 14. h4
{[%clk 0:04:31.8]} 14... f5 {[%clk 0:04:25]} 15. f3 {[%clk 0:04:27.5]} 15... b5
{[%clk 0:04:09]} 16. Bxb5 {[%clk 0:04:16.4]} 16... Qb6 {[%clk 0:04:02]} 17. Nc4
{[%clk 0:03:54.8]} 17... Qb8 {[%clk 0:04:00.6]} 18. Bc6 {[%clk 0:03:32.5]} 18...
Ba6 {[%clk 0:03:55.8]} 19. Bxa8 {[%clk 0:03:20.2]} 19... Bxc4 {[%clk 0:03:54.3]}
20. Bc6 {[%clk 0:03:16.2]} 20... Qxb2 {[%clk 0:03:52.9]} 21. Rc1 {[%clk
0:02:56.8]} 21... Qg2 {[%clk 0:03:50.5]} 22. Rf1 {[%clk 0:02:53.8]} 22... Nd3+
{[%clk 0:03:47.3]} 23. Qxd3 {[%clk 0:02:35.4]} 23... Bxd3 {[%clk 0:03:46.5]} 24.
Rf2 {[%clk 0:02:28.2]} 24... Qg1+ {[%clk 0:03:44.9]} 25. Kd2 {[%clk 0:02:27.3]}
25... Qg3 {[%clk 0:03:20.7]} 26. Kxd3 {[%clk 0:02:25]} 26... f4 {[%clk
0:03:15.9]} 27. Ba7 {[%clk 0:02:20]} 27... Nc5+ {[%clk 0:03:15.1]} 28. Bxc5
{[%clk 0:02:16.8]} 28... dxc5 {[%clk 0:03:14.4]} 29. Rcf1 {[%clk 0:02:13.6]}
29... Rb8 {[%clk 0:03:13.6]} 30. Bxa4 {[%clk 0:02:03.5]} 30... Rb4 {[%clk
0:03:12.5]} 31. a3 {[%clk 0:01:46.9]} 31... Rd4+ {[%clk 0:03:10.4]} 32. Ke2
{[%clk 0:01:41.9]} 32... Qxh4 {[%clk 0:03:08.3]} 33. Nb5 {[%clk 0:01:31.8]}
33... Rxa4 {[%clk 0:03:05.8]} 34. d6 {[%clk 0:01:28.2]} 34... Qxg5 {[%clk
0:03:04.6]} 35. d7 {[%clk 0:01:26]} 35... Bf6 {[%clk 0:03:02.5]} 36. Rd1 {[%clk
0:01:20]} 36... Bd8 {[%clk 0:03:01.6]} 37. Nd6 {[%clk 0:01:18.6]} 37... Rxa3
{[%clk 0:02:58]} 38. Rd2 {[%clk 0:01:12.9]} 38... Re3+ {[%clk 0:02:56.6]} 39.
Kd1 {[%clk 0:01:10.8]} 39... Qg1+ {[%clk 0:02:54.9]} 40. Kc2 {[%clk 0:01:09.2]}
40... Qa1 {[%clk 0:02:53]} 41. Nc4 {[%clk 0:01:00.9]} 41... Rc3# {[%clk
0:02:52]} 0-1

[Event "Live Chess"]
[Site "Chess.com"]
[Date "2024.06.02"]
[Round "-"]
[White "AlanBstard10"]
[Black "SavagePawn7"]
[Result "1-0"]
[WhiteElo "1159"]
[BlackElo "641"]
[TimeControl "300"]
[EndTime "23:11:43 PDT"]
[Termination "AlanBstard10 won by resignation"]

1. b4 {[%clk 0:04:58.1]} 1... d5 {[%clk 0:04:53.8]} 2. Bb2 {[%clk 0:04:56]} 2...
Nf6 {[%clk 0:04:45.5]} 3. a3 {[%clk 0:04:54.7]} 3... e6 {[%clk 0:04:32.9]} 4. e3
{[%clk 0:04:53.5]} 4... a6 {[%clk 0:04:26.4]} 5. Be2 {[%clk 0:04:52.8]} 5... Nc6
{[%clk 0:04:02.2]} 6. Nf3 {[%clk 0:04:51.6]} 6... Bd6 {[%clk 0:03:56.2]} 7. O-O
{[%clk 0:04:49.6]} 7... e5 {[%clk 0:03:54.4]} 8. d3 {[%clk 0:04:47.2]} 8... O-O
{[%clk 0:03:52.1]} 9. c4 {[%clk 0:04:45.3]} 9... dxc4 {[%clk 0:03:41.4]} 10.
dxc4 {[%clk 0:04:39.6]} 10... e4 {[%clk 0:03:33.5]} 11. Nd4 {[%clk 0:04:34.2]}
11... Nxd4 {[%clk 0:03:26.6]} 12. Qxd4 {[%clk 0:04:31.8]} 12... Re8 {[%clk
0:03:16.8]} 13. Nd2 {[%clk 0:04:25.8]} 13... Be5 {[%clk 0:03:03]} 14. Qxd8
{[%clk 0:04:23.8]} 14... Rxd8 {[%clk 0:03:01.6]} 15. Bxe5 {[%clk 0:04:22.7]}
15... Rxd2 {[%clk 0:02:57.1]} 16. Bxf6 {[%clk 0:04:22]} 16... gxf6 {[%clk
0:02:55.5]} 17. Rfe1 {[%clk 0:04:14.2]} 17... Bf5 {[%clk 0:02:51.9]} 18. f3
{[%clk 0:04:08.4]} 18... Rad8 {[%clk 0:02:43.4]} 19. fxe4 {[%clk 0:04:07.1]}
19... Bxe4 {[%clk 0:02:41]} 20. Bf3 {[%clk 0:04:01.2]} 20... Bxf3 {[%clk
0:02:32.8]} 21. gxf3 {[%clk 0:03:56]} 21... Rc2 {[%clk 0:02:29.9]} 22. Rac1
{[%clk 0:03:52]} 22... Ra2 {[%clk 0:02:26.8]} 23. Ra1 {[%clk 0:03:49.9]} 23...
Rdd2 {[%clk 0:02:17.7]} 24. Rxa2 {[%clk 0:03:36]} 24... Rxa2 {[%clk 0:01:48.8]}
25. Rd1 {[%clk 0:03:30.2]} 25... Rxa3 {[%clk 0:01:45.5]} 26. Rd8+ {[%clk
0:03:29.8]} 26... Kg7 {[%clk 0:01:43.6]} 27. Rb8 {[%clk 0:03:29.3]} 27... Rc3
{[%clk 0:01:35.8]} 28. Rxb7 {[%clk 0:03:27.7]} 28... Rxc4 {[%clk 0:01:34.5]} 29.
Ra7 {[%clk 0:03:26]} 29... Rxb4 {[%clk 0:01:30.9]} 30. Rxa6 {[%clk 0:03:25.1]}
30... Rc4 {[%clk 0:01:19.7]} 31. Kf2 {[%clk 0:03:23.3]} 31... h5 {[%clk
0:01:16]} 32. Ke2 {[%clk 0:03:22]} 32... Kg6 {[%clk 0:01:14.1]} 33. Kd3 {[%clk
0:03:21.1]} 33... Rc1 {[%clk 0:01:09.3]} 34. Ra2 {[%clk 0:03:10.9]} 34... Rc6
{[%clk 0:01:05.9]} 35. Rg2+ {[%clk 0:03:06.6]} 35... Kh7 {[%clk 0:00:56]} 36. h3
{[%clk 0:03:02.3]} 36... f5 {[%clk 0:00:52.5]} 37. Rg5 {[%clk 0:03:00.3]} 37...
Rd6+ {[%clk 0:00:45.3]} 38. Kc2 {[%clk 0:02:57.3]} 38... Rh6 {[%clk 0:00:28]}
39. Rxf5 {[%clk 0:02:55.6]} 39... Kg7 {[%clk 0:00:22.4]} 40. Rc5 {[%clk
0:02:51.8]} 1-0